bitfinex-derivatives/quotes_ETHF0:USTF0_20251216
["timestamp","ask_amount","ask_price","bid_price","bid_amount"]
[1765872634864,1.01954426,2932.4,2932.3,3.30911745]
[1765872635065,1.78429726,2932.6,2932.5,1.464]
[1765872635260,2.55819726,2932.6,2932.5,3.024]
[1765872640470,2.55819726,2932.6,2932.5,2.2894]
[1765872640667,4.0932376,2932.6,2932.5,1.56]
[1765872640872,1.5369,2931.9,2931.8,3.2078]
[1765872642377,1.5369,2931.9,2931.8,3.9372]
[1765872642576,1.5369,2931.9,2931.8,3.2078]
[1765872642774,1.5369,2931.9,2931.8,4.6718]
[1765872643377,1.5369,2931.9,2931.8,3.2078]
[1765872643976,1.5369,2931.9,2931.8,3.9372]
[1765872644485,1.5369,2931.9,2931.8,4.6718]
[1765872646583,1.5369,2931.9,2931.8,3.9372]
[1765872646783,1.5369,2931.9,2931.8,4.6718]
[1765872647790,1.5369,2931.9,2931.8,1.464]
[1765872647982,1.2055,2932.0,2931.9,1.464]
[1765872648183,1.2055,2932.0,2931.9,1.674]
[1765872648383,1.9794,2932.0,2931.9,1.464]
[1765872650385,1.5369,2931.8,2931.7,4.6718]
[1765872652495,0.763,2931.8,2931.7,4.6718]
[1765872652694,0.17054,2932.1,2932.0,1.464]
[1765872652890,0.93354,2932.1,2932.0,1.464]
[1765872653194,1.70744,2932.1,2932.0,1.464]
[1765872653492,2.72862842,2932.1,2932.0,1.464]
[1765872653683,1.70744,2932.1,2932.0,1.464]
[1765872654086,2.72862842,2932.1,2932.0,1.464]
[1765872654288,1.70744,2932.1,2932.0,1.464]
[1765872654691,2.72862842,2932.1,2932.0,1.464]
[1765872654891,1.70744,2932.1,2932.0,1.464]
[1765872655291,2.72862842,2932.1,2932.0,1.464]
[1765872655496,1.70744,2932.1,2932.0,1.464]
[1765872655795,1.70744,2932.1,2932.0,0.7294]
[1765872655990,2.72862842,2932.1,2932.0,0.7294]
[1765872656190,1.70744,2932.1,2932.0,0.7294]
[1765872656593,2.72862842,2932.1,2932.0,0.7294]
[1765872656790,1.70744,2932.1,2932.0,0.7294]
[1765872657296,2.72862842,2932.1,2932.0,0.7294]
[1765872657491,4.743761,2932.4,2932.2,1.464]
[1765872657492,1.78418842,2932.3,2932.2,1.464]
[1765872657697,1.02118842,2932.3,2932.2,1.464]
[1765872658394,2.55808842,2932.3,2932.2,1.464]
[1765872659301,1.78418842,2932.3,2932.2,1.464]
[1765872659493,0.763,2932.3,2932.2,4.034]
[1765872659699,3.9708,2932.4,2932.3,1.464]
[1765872659901,3.9708,2932.4,2932.3,4.014]
[1765872660103,3.2078,2932.4,2932.3,4.014]
[1765872660396,3.2078,2932.4,2932.3,1.464]
[1765872660702,3.9708,2932.4,2932.3,4.124]
[1765872660900,3.9708,2932.4,2932.3,1.464]
[1765872661104,3.9708,2932.4,2932.3,4.234]
[1765872661399,6.28064949,2932.4,2931.7,3.2078]
[1765872661599,3.07284949,2932.2,2932.1,0.7294]
[1765872661795,3.07284949,2932.2,2932.1,3.0694]
[1765872662001,1.5369,2932.2,2932.1,3.804]
[1765872662303,0.763,2932.2,2932.1,3.804]
[1765872662803,6.27074949,2932.4,2932.3,0.7143]
[1765872663399,4.7348,2932.4,2931.7,4.74374949]
[1765872663603,3.06294949,2932.3,2932.2,1.4613]
[1765872663998,3.06294949,2932.3,2932.2,0.7143]
[1765872664199,0.7638,2932.3,2932.2,1.4613]
[1765872664402,1.527,2932.3,2932.2,1.4613]
[1765872664602,1.527,2932.3,2932.2,0.7143]
[1765872664803,1.527,2931.8,2931.7,1.4613]
[1765872665004,1.527,2931.8,2931.7,3.8613]
[1765872666206,1.527,2931.8,2931.7,3.1143]
[1765872666409,1.527,2931.8,2931.7,3.8613]
[1765872668108,1.0217468,2932.0,2931.7,3.147]
[1765872668311,1.0217468,2932.3,2932.2,1.4613]
[1765872668711,1.0217468,2932.3,2932.2,4.1113]
[1765872668914,1.7855468,2932.3,2932.2,1.4613]
[1765872669112,1.7855468,2932.3,2932.2,4.0213]
[1765872669312,1.7855468,2932.3,2932.2,1.4613]
[1765872669613,1.0217468,2932.3,2932.2,1.4613]
[1765872669803,1.0217468,2932.3,2932.2,1.5113]
[1765872670005,1.0217468,2932.3,2932.2,3.8213]
[1765872670311,3.0180468,2932.5,2932.4,1.4613]
[1765872670512,1.7855468,2932.5,2932.4,1.4613]
[1765872670707,1.7855468,2932.5,2932.4,4.0613]
[1765872670902,1.0217468,2932.5,2932.4,4.0613]
[1765872671309,1.7855468,2932.5,2932.4,1.4613]
[1765872671506,1.7855468,2932.5,2932.4,4.1113]
[1765872672004,1.0217468,2932.5,2932.4,1.4613]
[1765872672206,2.5487468,2932.6,2932.5,1.4613]
[1765872673617,2.5487468,2932.6,2932.5,1.5113]
[1765872673815,2.5487468,2932.6,2932.5,3.8813]
[1765872674017,2.5487468,2932.6,2932.5,1.4613]
[1765872674410,1.7855468,2932.6,2932.5,5.63724949]
[1765872674612,0.00281636,2932.7,2932.6,1.4613]
[1765872674814,0.00281636,2932.7,2932.6,3.9313]
[1765872675815,1.52981636,2932.7,2932.6,1.4613]
[1765872676012,1.52981636,2932.7,2932.6,3.9913]
[1765872676212,0.76661636,2932.7,2932.6,3.9913]
[1765872676413,0.76661636,2932.7,2932.6,1.4613]
[1765872677417,0.76661636,2932.7,2932.6,1.6313]
[1765872677616,0.76661636,2932.7,2932.6,1.4613]
[1765872677814,1.52981636,2932.7,2932.6,1.4613]
[1765872678119,1.52981636,2932.7,2932.6,0.7143]
[1765872678319,1.52981636,2932.7,2932.6,1.4613]
[1765872679516,0.76661636,2932.7,2932.6,1.4613]
[1765872679716,1.52981636,2932.7,2932.6,1.4613]
[1765872680120,0.76661636,2932.7,2932.6,1.6613]
[1765872680819,0.00281636,2932.7,2932.6,1.6613]
[1765872681020,0.76661636,2932.7,2932.6,1.4613]
[1765872681519,0.76661636,2932.7,2932.6,3.7113]
[1765872681822,0.00281636,2932.7,2932.6,3.7113]
[1765872682715,0.00281636,2932.7,2932.6,5.24724949]
[1765872684216,1.52981636,2932.7,2932.6,3.7113]
[1765872685224,0.76661636,2932.7,2932.6,3.7113]
[1765872685418,0.00281636,2932.7,2932.6,3.7113]
[1765872686420,0.76661636,2932.7,2932.6,3.7113]
[1765872686628,0.00281636,2932.7,2932.6,3.7113]
[1765872686922,0.76661636,2932.7,2932.6,3.7113]
[1765872687623,0.00281636,2932.7,2932.6,3.7113]
[1765872690323,0.76661636,2932.7,2932.6,3.7113]
[1765872690718,0.00281636,2932.7,2932.6,3.7113]
[1765872692118,2.89911396,2933.0,2932.9,1.4613]
[1765872692324,4.7297,2933.6,2933.0,0.4496]
[1765872692526,3.9716,2933.6,2933.5,1.5005]
[1765872692718,3.9716,2933.6,2933.5,4.3701]
[1765872693322,0.76805544,2933.6,2933.5,4.37358316]
[1765872694326,0.76805544,2933.6,2933.5,7.58138316]
[1765872694531,0.00425544,2933.6,2933.5,7.58138316]
[1765872697740,0.00425544,2933.6,2933.5,5.16138316]
[1765872697938,1.51365544,2933.6,2933.5,8.75773265]
[1765872698135,0.00425544,2933.6,2933.5,9.19983265]
[1765872699346,1.51365544,2933.6,2933.5,4.01398316]
[1765872699546,1.51365544,2933.6,2933.5,3.97898316]
[1765872700444,1.51365544,2933.6,2933.5,3.25898316]
[1765872703745,1.51365544,2933.6,2933.5,2.51348316]
[1765872703945,4.72145544,2933.6,2933.5,0.00348316]
[1765872704249,1.5094,2933.4,2933.3,0.00511745]
[1765872704445,3.04534949,2933.4,2933.3,0.00511745]
[1765872704641,1.5094,2932.7,2932.6,4.6877]
[1765872704846,1.5094,2932.7,2932.6,7.4377]
[1765872705151,1.5094,2932.7,2932.6,7.44034623]
[1765872705942,1.5094,2932.7,2932.6,6.72034623]
[1765872706749,1.5094,2932.7,2932.6,7.44034623]
[1765872707947,1.5094,2932.7,2932.6,4.23254623]
[1765872708848,1.5094,2932.7,2932.6,2.75264623]
[1765872709052,1.5094,2932.7,2932.6,3.51254623]
[1765872709255,1.5094,2932.7,2932.6,2.75264623]
[1765872709655,1.5094,2932.7,2932.6,3.51254623]
[1765872712452,1.5094,2932.7,2932.6,4.23254623]
[1765872713057,4.7172,2932.7,2932.6,3.51254623]
[1765872713255,6.2524346,2932.7,2932.6,2.75264623]
[1765872714154,6.2524346,2932.7,2932.6,3.51254623]
[1765872714957,6.2524346,2932.7,2932.6,4.23254623]
[1765872715361,6.2524346,2932.7,2932.6,2.75264623]
[1765872715560,4.7172,2932.7,2932.6,2.75264623]
[1765872715761,6.2524346,2932.7,2932.6,2.75264623]
[1765872716258,6.2524346,2932.7,2932.6,3.51254623]
[1765872717160,6.2524346,2932.7,2932.6,4.23254623]
[1765872717359,4.7172,2932.7,2932.6,4.23254623]
[1765872717561,4.7172,2932.7,2932.6,3.51254623]
[1765872718661,4.7172,2932.7,2932.6,2.75264623]
[1765872720056,4.88771,2932.7,2932.6,2.75264623]
[1765872721057,4.88771,2932.7,2932.6,0.62264623]
[1765872721855,0.7537,2931.8,2931.7,4.6877]
[1765872722158,1.5094,2931.8,2931.7,4.8877]
[1765872722356,1.5094,2931.8,2931.7,7.5377]
[1765872722552,1.5094,2931.8,2931.7,3.2078]
[1765872722751,1.4642,2931.2,2931.1,3.2078]
[1765872722957,0.7307,2930.9,2930.8,4.6649]
[1765872723157,1.4642,2930.9,2930.8,7.0482273]
[1765872724660,0.7307,2930.9,2930.8,7.0482273]
[1765872724860,1.46807684,2931.2,2931.1,1.4571]
[1765872725061,1.46807684,2931.2,2931.1,3.6371]
[1765872725261,1.46807684,2931.2,2931.1,2.9316]
[1765872726166,1.46807684,2931.2,2931.1,3.6371]
[1765872726756,1.46807684,2931.2,2931.1,2.9316]
[1765872731367,1.46807684,2931.2,2931.1,3.6371]
[1765872731963,1.46807684,2931.2,2931.1,2.9316]
[1765872734164,1.46807684,2931.2,2931.1,2.18]
[1765872734464,1.46807684,2931.2,2931.1,2.9316]
[1765872735271,1.63866684,2931.2,2931.1,2.9316]
[1765872735967,1.63866684,2931.2,2931.1,2.18]
[1765872736867,1.63866684,2931.2,2931.1,3.6371]
[1765872737064,0.90516684,2931.2,2931.1,3.6371]
[1765872737963,0.17446684,2931.2,2931.1,3.6371]
[1765872738465,1.63866684,2931.2,2931.1,2.9316]
[1765872739365,1.63866684,2931.2,2931.1,3.6371]
[1765872739567,0.90516684,2931.2,2931.1,3.6371]
[1765872739768,0.17446684,2931.2,2931.1,3.6371]
[1765872742265,0.00511745,2931.4,2931.3,1.4571]
[1765872742466,1.745e-05,2931.4,2931.3,5.79230946]
[1765872742865,3.2078,2931.8,2931.7,1.4571]
[1765872743067,4.10903,2932.4,2932.3,1.4571]
[1765872743262,3.38103493,2932.4,2932.3,1.4571]
[1765872743468,4.11173493,2932.4,2932.3,1.4571]
[1765872743674,3.38103493,2932.4,2932.3,1.4571]
[1765872743866,3.38103493,2932.4,2932.3,1.4971]
[1765872744464,0.17323493,2932.4,2932.3,3.9671]
[1765872744670,0.00270493,2932.4,2932.3,4.2471]
[1765872745467,0.00270493,2932.4,2932.3,5.78230946]
[1765872745772,0.00511745,2932.6,2932.5,1.8965]
[1765872745972,0.00511745,2932.6,2932.5,4.4865]
[1765872746871,0.00754825,2932.6,2932.5,4.4865]
[1765872760590,0.00754825,2932.6,2932.5,7.6943]
[1765872762079,5.1542,2933.5,2933.4,1.5028]
[1765872762286,5.1542,2933.5,2933.4,3.7928]
[1765872762484,5.1542,2933.5,2933.4,1.5028]
[1765872762680,5.1542,2933.5,2932.9,1.53520946]
[1765872762888,5.1542,2933.5,2933.0,0.766]
[1765872762889,1.5085,2933.1,2933.0,0.766]
[1765872763090,1.51198188,2933.1,2933.0,3.56020194]
[1765872763692,1.51198188,2933.1,2933.0,3.42020194]
[1765872764191,1.51198188,2933.1,2933.0,3.38020194]
[1765872765688,1.51198188,2933.1,2933.0,4.11700194]
[1765872766290,1.51198188,2933.1,2933.0,3.84700194]
[1765872767993,1.51198188,2933.1,2933.0,0.00420194]
[1765872768192,1.5085,2932.4,2932.3,0.77111745]
[1765872768492,1.5085,2932.4,2932.3,3.46111745]
[1765872768692,1.5085,2932.4,2932.3,4.19791745]
[1765872769093,1.5085,2932.4,2932.3,4.20083256]
[1765872771498,1.5085,2932.4,2932.3,3.46403256]
[1765872771702,1.5085,2932.4,2932.3,4.20083256]
[1765872773094,0.76,2932.4,2932.3,4.20083256]
[1765872777009,2.52350068,2932.4,2932.3,2.6946528]
[1765872777197,2.69402068,2932.4,2932.3,2.6946528]
[1765872777401,2.69402068,2932.4,2932.3,3.4606528]
[1765872777707,1.67902,2932.4,2932.3,4.1974528]
[1765872778806,1.67902,2932.4,2932.3,3.4606528]
[1765872779009,1.67902,2932.4,2932.3,2.6946528]
[1765872781610,1.67902,2932.4,2932.3,3.4606528]
[1765872782809,7.43728258,2932.4,2932.3,2.61776171]
[1765872784304,6.4222819,2932.4,2932.3,2.61776171]
[1765872786309,12.4222819,2932.4,2932.3,2.61776171]
[1765872786504,13.43728258,2932.4,2932.3,2.61776171]
[1765872787711,7.43728258,2932.4,2932.3,2.61776171]
[1765872788110,6.4222819,2932.4,2932.3,2.61776171]
[1765872792805,1.4213,2931.4,2931.3,3.2078]
[1765872793012,1.59188,2931.4,2931.3,6.4232]
[1765872793209,0.88538,2931.4,2931.3,7.5252]
[1765872793413,0.17058,2931.4,2931.3,7.5252]
[1765872793812,0.17058,2931.4,2931.3,7.52923376]
[1765872794815,0.88538,2931.4,2931.3,7.52923376]
[1765872795116,0.17058,2931.4,2931.3,7.52923376]
[1765872795512,0.17058,2931.4,2931.3,4.32143376]
[1765872797214,3.1273419,2931.4,2931.3,4.32143376]
[1765872799115,3.1273419,2931.4,2931.3,3.58943376]
[1765872799418,3.1273419,2931.4,2931.3,2.83403376]
[1765872804522,1.59188,2931.4,2931.3,2.83403376]
[1765872804716,0.88538,2931.4,2931.3,4.32143376]
[1765872805022,0.17058,2931.4,2931.3,4.32143376]
[1765872805211,1.59188,2931.4,2931.3,4.32143376]
[1765872805817,0.88538,2931.4,2931.3,4.32143376]
[1765872806421,0.17058,2931.4,2931.3,4.32143376]
[1765872813323,0.88618,2931.4,2931.3,4.32143376]
[1765872813926,0.17058,2931.4,2931.3,4.32143376]
[1765872818624,3.2078,2931.5,2931.4,1.5293]
[1765872818829,3.2078,2931.5,2931.4,5.3547619]
[1765872822125,0.00511745,2931.6,2931.5,1.9875]
[1765872822330,1.745e-05,2931.6,2931.5,6.2029619]
[1765872832343,0.17055,2932.0,2931.9,1.5293]
[1765872832538,0.17055,2932.0,2931.9,5.5747619]
[1765872832739,3.2078,2932.1,2932.0,1.9875]
[1765872832937,3.2078,2932.4,2932.0,2.9082]
[1765872833239,1.01602035,2932.9,2932.8,1.5293]
[1765872833440,3.38688933,2933.1,2933.0,1.5293]
[1765872833746,3.38688933,2933.1,2933.0,4.2493]
[1765872833945,0.17908933,2933.1,2933.0,4.2493]
[1765872836545,0.17908933,2933.1,2933.0,3.0647619]
[1765872836749,0.17908933,2933.1,2933.0,6.1287619]
[1765872837151,0.17908933,2933.1,2933.0,4.5133]
[1765872837544,0.17908933,2933.1,2933.0,4.1393]
[1765872840248,0.17908933,2933.1,2933.0,7.3471]
[1765872845560,3.9484,2933.7,2933.6,1.4523]
[1765872845958,4.7295,2933.7,2933.6,1.7123]
[1765872846256,4.7295,2933.7,2933.6,3.7823]
[1765872846456,4.90416298,2933.7,2933.6,3.78566018]
[1765872846851,4.90416298,2933.7,2933.6,3.06766018]
[1765872847259,4.90416298,2933.7,2933.6,2.33336018]
[1765872847658,4.90416298,2933.7,2933.6,3.06766018]
[1765872847858,4.90416298,2933.7,2933.6,3.78566018]
[1765872848451,0.91526298,2933.7,2933.6,3.78566018]
[1765872848657,0.17466298,2933.7,2933.6,3.78566018]
[1765872849055,0.00421298,2933.7,2933.6,3.78566018]
[1765872849264,0.00511745,2933.9,2933.8,1.4523]
[1765872849461,0.00511745,2933.9,2933.8,5.69667508]
[1765872849764,0.00511745,2933.9,2933.8,4.1623]
[1765872850165,0.74571745,2933.9,2933.8,4.1623]
[1765872850356,0.00843082,2933.9,2933.8,4.1623]
[1765872852563,0.74903082,2933.9,2933.8,4.1623]
[1765872853164,0.00843082,2933.9,2933.8,4.1623]
[1765872853562,0.00843082,2933.9,2933.8,4.3023]
[1765872854565,0.00843082,2933.9,2933.8,1.5223]
[1765872854766,0.00843082,2933.9,2933.8,4.2623]
[1765872856566,1.53013082,2933.9,2933.8,4.0823]
[1765872856766,0.74903082,2933.9,2933.8,4.0823]
[1765872857167,0.74903082,2933.9,2933.8,1.8723]
[1765872857368,0.74903082,2933.9,2933.8,3.8723]
[1765872858364,0.74903082,2933.9,2933.8,3.9323]
[1765872858867,0.00843082,2933.9,2933.8,3.9323]
[1765872859069,0.17887082,2933.9,2933.8,3.9323]
[1765872859464,0.17887082,2933.9,2933.8,1.4523]
[1765872859664,0.17887082,2933.9,2933.8,4.2823]
[1765872860263,1.70057082,2933.9,2933.8,0.7343]
[1765872860470,1.5217,2933.7,2933.6,0.00336018]
[1765872860672,1.5217,2933.7,2933.6,0.73766018]
[1765872861266,2.53104573,2933.7,2933.6,3.49766018]
[1765872861469,1.69215,2933.7,2933.6,2.37336018]
[1765872861664,1.5217,2933.2,2933.1,3.9421]
[1765872861868,4.23590081,2933.2,2933.1,2.69]
[1765872862871,4.23590081,2933.2,2933.1,2.69300877]
[1765872863671,2.70152573,2933.2,2933.1,2.69300877]
[1765872864272,5.90932573,2933.2,2933.1,2.69300877]
[1765872864673,5.90932573,2933.2,2933.1,2.51306664]
[1765872864975,5.90932573,2933.2,2933.1,0.00300877]
[1765872865575,5.90932573,2933.2,2933.1,8.77e-06]
[1765872865772,7.44370081,2933.2,2933.1,8.77e-06]
[1765872866168,13.81840463,2933.2,2933.1,8.77e-06]
[1765872866474,1.6922,2932.9,2932.8,7.45e-06]
[1765872866673,7.44372081,2932.9,2932.8,0.00294029]
[1765872867771,15.65072517,2932.9,2932.8,4.029e-05]
[1765872868074,13.81828517,2932.9,2932.8,4.029e-05]
[1765872870276,13.44372081,2932.9,2932.8,4.029e-05]
[1765872871070,13.44372081,2932.9,2932.6,0.00511745]
[1765872871276,1.69221,2932.7,2932.6,7.74e-06]
[1765872872273,1.69221,2932.7,2932.6,0.00341369]
[1765872873378,1.69221,2932.7,2932.6,3.69e-06]
[1765872875183,2.13172,2932.5,2932.4,1.14e-06]
[1765872875482,0.7591,2931.7,2931.6,4.6653]
[1765872875679,0.7591,2931.7,2931.6,6.9553]
[1765872875881,3.23692508,2932.0,2931.9,0.7415]
[1765872876079,3.23692508,2932.0,2931.9,0.7715]
[1765872876279,3.24065539,2932.0,2931.9,0.74549484]
[1765872876980,3.67235539,2932.0,2931.9,0.00399484]
[1765872877376,1.70628031,2932.0,2931.9,1.46149484]
[1765872878981,1.70628031,2932.0,2931.9,0.74549484]
[1765872879169,1.70628031,2932.0,2931.9,0.00399484]
[1765872879372,1.70256,2931.8,2931.7,7.45e-06]
[1765872879580,6.44473508,2931.8,2931.7,7.45e-06]
[1765872880380,6.44473508,2931.8,2931.7,0.00258784]
[1765872886288,1.7026,2931.1,2931.0,1.686]
[1765872886480,3.23697508,2931.1,2931.0,4.386]
[1765872886986,2.46407508,2931.1,2931.0,4.386]
[1765872887180,2.46407508,2931.1,2931.0,4.38993444]
[1765872887686,3.23697508,2931.1,2931.0,4.38993444]
[1765872889388,2.46407508,2931.1,2931.0,4.38993444]
[1765872891187,3.23697508,2931.1,2931.0,2.70393444]
[1765872891389,1.7026,2931.1,2931.0,2.70393444]
[1765872892094,1.7026,2931.1,2931.0,3.44543444]
[1765872892393,1.7026,2931.1,2931.0,2.70393444]
[1765872892792,1.70261,2930.9,2930.8,0.0034116]
[1765872892997,1.70261,2930.9,2930.4,3.9493]
[1765872892998,1.70263,2930.5,2930.4,3.9493]
[1765872893295,2.46410508,2930.5,2930.4,4.6653]
[1765872893690,3.23700508,2930.5,2930.4,3.2078]
[1765872893993,3.23700508,2930.5,2930.4,3.95222518]
[1765872894192,3.23700508,2930.5,2930.4,4.66822518]
[1765872894793,6.44480508,2930.5,2930.4,1.46042518]
[1765872895193,4.24325966,2930.5,2930.4,1.46042518]
[1765872895386,7.45105966,2930.5,2930.4,1.46042518]
[1765872896692,7.45105966,2930.5,2930.4,0.74442518]
[1765872897598,4.24325966,2930.5,2930.4,0.74442518]
[1765872897904,7.45105966,2930.5,2930.4,1.46042518]
[1765872898496,7.45105966,2930.5,2930.4,0.74442518]
[1765872899999,7.45105966,2930.5,2930.4,1.46042518]
[1765872900200,7.45473824,2930.5,2930.4,1.46042518]
[1765872900598,7.45473824,2930.5,2930.4,0.74442518]
[1765872900798,7.45473824,2930.5,2930.4,1.46042518]
[1765872901200,7.63233824,2930.5,2930.4,0.00292518]
[1765872901397,0.17069,2929.6,2929.5,5.1276]
[1765872901698,0.17069,2929.6,2929.5,7.5776]
[1765872902491,0.17371695,2929.6,2929.5,7.58051751]
[1765872904301,0.17371695,2929.6,2929.5,1.92271751]
[1765872904302,3.48168301,2929.6,2929.5,1.92271751]
[1765872905200,3.48168301,2929.6,2929.5,2.11271751]
[1765872905407,2.72258301,2929.6,2929.5,1.92271751]
[1765872905702,2.72258301,2929.6,2929.5,2.00271751]
[1765872906300,1.18420306,2929.6,2929.5,1.92271751]
[1765872906500,1.18420306,2929.6,2929.5,1.99271751]
[1765872906898,1.18420306,2929.6,2929.5,1.92271751]
[1765872907092,1.745e-05,2929.8,2929.7,1.536]
[1765872907400,8.19631995,2930.5,2930.4,1.536]
[1765872907604,8.68361995,2930.5,2930.4,1.536]
[1765872907991,7.14854518,2930.5,2930.4,1.536]
[1765872908196,8.68692513,2930.5,2930.4,1.536]
[1765872908600,8.85755513,2930.5,2930.4,1.596]
[1765872909096,5.21417518,2930.5,2930.4,1.536]
[1765872909296,0.17393518,2930.5,2930.4,10.186]
[1765872909600,0.17393518,2930.5,2930.4,4.256]
[1765872910396,0.17393518,2930.5,2930.4,5.79303133]
[1765872910599,0.00511745,2930.7,2930.6,1.536]
[1765872910795,3.15984878,2930.7,2930.3,3.2078]
[1765872910997,3.32537133,2930.4,2930.3,3.2078]
[1765872911194,1.78835,2930.3,2930.2,0.00511745]
[1765872911399,1.00649,2929.6,2929.5,5.20901751]
[1765872911597,2.54657563,2929.6,2929.5,7.57901751]
[1765872911992,1.7884,2929.3,2929.2,3.9746]
[1765872912199,0.1707,2929.3,2929.2,7.3938]
[1765872913098,0.1707,2929.3,2929.2,7.39697953]
[1765872913598,0.1707,2929.3,2929.2,4.18917953]
[1765872916501,1.7884,2929.3,2929.2,4.18917953]
[1765872919102,2.79598939,2929.3,2929.2,4.18917953]
[1765872919808,1.17828939,2929.3,2929.2,4.18917953]
[1765872920207,0.1707,2929.3,2929.2,4.18917953]
[1765872920505,1.17828939,2929.3,2929.2,4.18917953]
[1765872920706,1.0065,2929.3,2929.2,4.18917953]
[1765872920906,2.01408939,2929.3,2929.2,4.18917953]
[1765872921106,0.1707,2929.3,2929.2,4.18917953]
[1765872921300,2.79598939,2929.3,2929.2,3.41997953]
[1765872921507,1.7884,2929.3,2929.2,4.18917953]
[1765872921808,2.79598939,2929.3,2929.2,4.18917953]
[1765872922001,1.7884,2929.3,2929.2,4.18917953]
[1765872922200,2.01408939,2929.3,2929.2,4.18917953]
[1765872922408,1.0065,2929.3,2929.2,4.18917953]
[1765872922612,2.01408939,2929.3,2929.2,4.18917953]
[1765872922807,1.0065,2929.3,2929.2,4.18917953]
[1765872923009,2.01408939,2929.3,2929.2,4.18917953]
[1765872923205,1.0065,2929.3,2929.2,4.18917953]
[1765872923510,1.7884,2929.3,2929.2,4.18917953]
[1765872924403,0.1707,2929.3,2929.2,4.18917953]
[1765872926611,1.0065,2929.3,2929.2,7.39697953]
[1765872926815,1.7884,2929.3,2929.2,4.18917953]
[1765872927308,1.0065,2929.3,2929.2,4.18917953]
[1765872928325,1.7884,2929.3,2929.2,4.18917953]
[1765872929021,5.10354012,2929.3,2929.2,0.00317953]
[1765872929224,1.78844,2928.7,2928.6,0.7668]
[1765872929522,1.78844,2928.7,2928.6,3.986]
[1765872929824,1.78846,2928.4,2928.3,6.24105446]
[1765872930218,1.78846,2928.4,2928.3,6.24526886]
[1765872930417,1.78846,2928.4,2928.3,7.96526886]
[1765872930619,1.78846,2928.4,2928.3,3.98826886]
[1765872931023,1.78846,2928.4,2928.3,4.75746886]
[1765872931326,1.78846,2928.4,2928.3,3.22146886]
[1765872931518,1.78846,2928.4,2928.3,4.75746886]
[1765872932221,0.17076,2928.4,2928.3,4.75746886]
[1765872932427,0.17076,2928.4,2928.3,7.96526886]
[1765872932621,0.17584745,2928.9,2928.8,1.6203]
[1765872932819,0.00511745,2928.9,2928.8,4.3103]
[1765872933120,1.64191745,2928.9,2928.8,3.4742]
[1765872933319,1.64191745,2928.9,2928.8,4.3103]
[1765872933529,0.17584745,2928.9,2928.8,4.3103]
[1765872933725,1.81264745,2928.9,2928.8,4.3103]
[1765872934425,1.00814745,2928.9,2928.8,4.3103]
[1765872934924,1.81264745,2928.9,2928.8,4.3103]
[1765872935126,0.17584745,2928.9,2928.8,4.3103]
[1765872936829,1.81264745,2928.9,2928.8,1.6203]
[1765872937330,1.00814745,2928.9,2928.8,1.8203]
[1765872937935,1.80755,2928.6,2928.5,1.61775603]
[1765872938127,1.80755,2928.6,2928.5,2.00775603]
[1765872939339,1.80755,2928.6,2928.5,0.39]
[1765872939731,1.8076,2927.6,2927.5,2.10402849]
[1765872940032,1.8076,2927.6,2927.5,1.26792849]
[1765872940237,5.0154,2927.6,2927.5,1.26792849]
[1765872940431,1.6368,2927.1,2927.0,1.2393]
[1765872940632,1.64078367,2927.1,2927.0,3.14837411]
[1765872940836,0.2386,2927.0,2926.0,2.1053]
[1765872941037,0.17088,2926.3,2926.2,1.6203]
[1765872941238,0.17088,2926.3,2926.2,1.6503]
[1765872941432,0.17088,2926.3,2926.2,3.4803]
[1765872941638,4.0401,2926.9,2926.8,1.6203]
[1765872941838,0.8323,2926.9,2926.8,1.62398069]
[1765872942026,0.17084,2927.0,2926.9,1.6203]
[1765872942231,0.17084,2927.0,2926.9,1.6503]
[1765872943633,0.17084,2927.0,2926.9,1.6203]
[1765872943832,0.17084,2927.0,2926.9,1.6503]
[1765872944028,1.00314,2927.0,2926.9,1.6203]
[1765872945341,0.8323,2926.9,2926.8,1.62398069]
[1765872945537,1.6368,2926.9,2926.8,0.78788069]
[1765872945738,4.8446,2926.9,2926.8,0.78788069]
[1765872945941,4.8446,2926.9,2926.8,0.00368069]
[1765872946433,4.8446,2926.9,2926.8,0.78788069]
[1765872946641,4.0401,2926.9,2926.8,1.62398069]
[1765872946833,3.2078,2926.9,2926.8,1.62398069]
[1765872947140,3.2078,2926.9,2926.8,4.38398069]
[1765872949736,3.2078,2926.9,2926.8,4.11398069]
[1765872950843,3.2078,2926.9,2926.8,1.67398069]
[1765872951837,0.17084,2927.0,2926.9,1.6203]
[1765872952041,0.17084,2927.0,2926.9,1.6703]
[1765872953243,0.17084,2927.0,2926.9,4.4403]
[1765872954144,0.00398367,2927.1,2927.0,2.1053]
[1765872954338,0.00398367,2927.1,2927.0,4.5053]
[1765872954734,1.64078367,2927.1,2927.0,2.1053]
[1765872954941,4.84858367,2927.1,2927.0,2.1053]
[1765872955542,4.84858367,2927.1,2927.0,1.2692]
[1765872956450,0.83628367,2927.1,2927.0,2.1053]
[1765872956741,0.83628367,2927.1,2927.0,4.9153]
[1765872956944,0.00398367,2927.1,2927.0,4.9153]
[1765872957341,0.00398367,2927.1,2927.0,2.3153]
[1765872957541,0.00398367,2927.1,2927.0,2.1053]
[1765872957740,0.83628367,2927.1,2927.0,4.5053]
[1765872958140,0.83628367,2927.1,2927.0,2.1053]
[1765872958544,0.83628367,2927.1,2927.0,2.1253]
[1765872960348,0.00398367,2927.1,2927.0,2.1253]
[1765872960541,0.00398367,2927.1,2927.0,4.4853]
[1765872962452,1.85421367,2927.1,2927.0,3.305]
[1765872962752,1.85421367,2927.1,2927.0,5.018]
[1765872963351,1.00711367,2927.1,2927.0,5.018]
[1765872963549,0.17481367,2927.1,2927.0,5.018]
[1765872964051,0.99711367,2927.1,2927.0,5.018]
[1765872964246,0.17481367,2927.1,2927.0,5.018]
[1765872964646,0.00398367,2927.1,2927.0,5.018]
[1765872965050,0.99711367,2927.1,2927.0,4.698]
[1765872965251,1.84421367,2927.1,2927.0,4.698]
[1765872965451,1.84421367,2927.1,2927.0,4.948]
[1765872965452,0.99711367,2927.1,2927.0,4.948]
[1765872965851,1.84024,2926.9,2926.8,0.82628069]
[1765872966156,2.84646125,2926.9,2926.8,0.00368069]